Cogmind - Beta 16 @@@ ROGUE MODE // 2025.12.30 @ 19:01:41 // Winter2019/RPGLIKE Player: Luminiferous Result: Destroyed by DW-4LL with DW-4LL's Megashotty Performance ------------- Evolutions (6) 3000 Regions Visited (19) 3800 Robots Destroyed (348) 1740 Value Destroyed (13945) 13945 Prototype IDs (36) 720 Alien Tech Used (0) 0 Bonus (3273) 3273 TOTAL SCORE: 26478 Bonus ------- High Alert Combat Kills 827 Follower Combat Kills 503 Registered with UFD 300 Met Optimus in HQ 500 Met Data Miner 300 Met Warlord at Base 500 MAIN.C Attacked Warlord 500 Warlord Defense Kills 1038 Friendly Fire -1195 Cogmind --------- Core Integrity 0/1000 Matter 121/300 Energy 265/270 System Corruption 9% Temperature Cool (0) Movement Hovering (46) Location -4/Factory Parts ------- > --- POWER (3) -------- Micro Fission Core Light Antimatter Reactor Micro Antimatter Reactor > --- PROPULSION (6) --- Combat Airjet Improved Antigrav System Improved Antigrav System Improved Antigrav System Improved Gyrokinetic Inverter Improved Gyrokinetic Inverter > --- UTILITY (11) ----- Advanced Heat Sink Long-range Sensor Array Advanced Signal Interpreter Core Analyzer Improved Kinecellerator Improved Weapon Cycler Advanced Transmission Jammer Improved Reaction Control System Powered Armor Graphene Brace Long-range Tractor Beam > --- WEAPON (2) ------- Enhanced Coil Gun Railgun > --- INVENTORY (4) ---- Protomatter-55 Protomatter-46 Protomatter-44 Micro-nuke Launcher Peak State ------------ > --- POWER ------------ Micro Fission Core Micro Fission Core Micro Fission Core > --- PROPULSION ------- Combat Airjet Antigrav System Antigrav System Antigrav System Gyrokinetic Inverter Cooled Gravmag System > --- UTILITY ---------- Advanced Signal Interpreter Core Analyzer Wardrone Bay > --- WEAPON ----------- Coil Gun KE Penetrator > --- INVENTORY -------- Protomatter Advanced Heat Sink Heavy Rocket Launcher [Rating: 179] Favorites ----------- Power Micro Fission Core Engine Improved Ion Engine Power Core Micro Fission Core Reactor Light Antimatter Reactor Propulsion Improved Hover Unit Leg Aluminum Leg Hover Unit Improved Hover Unit Utility Improved Reaction Control System Device Improved Reaction Control System Processor Advanced Signal Interpreter Hackware Authchip [Armor] Protection Layered Medium Armor Plating Weapon Coil Gun Energy Gun Improved EM Shotgun Energy Cannon Vortex Cannon Ballistic Gun Coil Gun Ballistic Cannon Advanced Assault Cannon Launcher Mini Grenade Launcher Special Weapon Junk Cannon Build | -11 -10 -10 -9 -9 -9 -9 -6 -6 -6 -6 -5 -5 -5 -5 -5 -4 -4 -4 -4 ------- Run | Yrd Mat Min Mat Sto Rec Scr Fac Low Low Dat Pro Fac Upp Upp War Pro Fac Was Fac Slots Evolved 18 | 3 . . 3 2 1 . 3 . . . . 4 . 1 . . 1 . . Power 2 | . . . . 1 . . . . . . . 1 . . . . . . . Propulsion 5 | 1 . . 2 . . . 1 . . . . . . 1 . . . . . Utility 10 | 1 . . 1 1 1 . 2 . . . . 3 . . . . 1 . . Weapon 1 | 1 . . . . . . . . . . . . . . . . . . . Parts Attached 166 | 6 4 1 20 7 4 4 25 4 4 . 1 34 1 2 3 2 23 6 15 Power 20 | 1 . . 2 1 . . 3 . 1 . . 7 . . . 1 2 2 . Engine 6 | 1 . . 2 1 . . . . 1 . . 1 . . . . . . . Core 9 | . . . . . . . 3 . . . . 6 . . . . . . . Reactor 5 | . . . . . . . . . . . . . . . . 1 2 2 . Propulsion 37 | 2 . . 4 2 1 . 8 . . . . 10 . . . . 7 1 2 Treads . | . . . . . . . . . . . . . . . . . . . . Leg 2 | 2 . . . . . . . . . . . . . . . . . . . Wheel . | . . . . . . . . . . . . . . . . . . . . Hover 35 | . . . 4 2 1 . 8 . . . . 10 . . . . 7 1 2 Flight . | . . . . . . . . . . . . . . . . . . . . Utility 70 | 1 1 1 6 1 3 2 10 2 2 . 1 15 1 2 1 . 10 1 10 Device 46 | 1 . . 2 1 1 2 6 . 1 . 1 11 . 2 1 . 8 . 9 Storage . | . . . . . . . . . . . . . . . . . . . . Processor 7 | . . . 1 . . . 1 1 1 . . 2 . . . . . . 1 Hackware 1 | . . . . . 1 . . . . . . . . . . . . . . Protection 16 | . 1 1 3 . 1 . 3 1 . . . 2 1 . . . 2 1 . Artifact . | . . . . . . . . . . . . . . . . . . . . Weapon 39 | 2 3 . 8 3 . 2 4 2 1 . . 2 . . 2 1 4 2 3 Energy Gun 2 | . . . 1 . . 1 . . . . . . . . . . . . . Energy Cannon 2 | . . . . 1 . . . . . . . . . . 1 . . . . Ballistic Gun 24 | 2 . . 7 1 . . 4 2 . . . 1 . . . 1 3 . 3 Ballistic Cannon 2 | . 1 . . . . . . . 1 . . . . . . . . . . Launcher 8 | . 2 . . 1 . . . . . . . 1 . . 1 . 1 2 . Special Weapon 1 | . . . . . . 1 . . . . . . . . . . . . . Impact Weapon . | . . . . . . . . . . . . . . . . . . . . Slashing Weapon . | . . . . . . . . . . . . . . . . . . . . Piercing Weapon . | . . . . . . . . . . . . . . . . . . . . Special Melee Weapon . | . . . . . . . . . . . . . . . . . . . . Unidentified Prototypes 20 | . . . 3 1 . 1 2 . . . . 1 . . 3 . 4 3 2 Corrupted Parts 1 | . . . . . 1 . . . . . . . . . . . . . . System Corruption 2 | . . . . . 2 . . . . . . . . . . . . . . Parts Lost 9 | . . . 1 . . 1 1 1 2 . 1 1 1 . . . . . . Power . | . . . . . . . . . . . . . . . . . . . . Propulsion 2 | . . . . . . . . . 1 . 1 . . . . . . . . Utility 7 | . . . 1 . . 1 1 1 1 . . 1 1 . . . . . . Weapon . | . . . . . . . . . . . . . . . . . . . . Highest Loss Streak 2 | . . . 1 . . 1 1 1 2 . 1 1 1 . . . . . . To Critical Strikes . | . . . . . . . . . . . . . . . . . . . . Average Backups 1 | . . 1 2 1 1 1 1 2 1 2 2 1 2 1 1 1 2 1 1 Power . | . . . . . . . . . . . . . . . . . . . . Propulsion . | . . . 1 . . . . 1 . . . . 1 . . . . . . Utility . | . . . . . . . . . . . . . . . . . . . . Weapon 1 | . . 1 1 1 1 1 1 1 1 2 2 1 1 1 1 1 1 1 1 Tool/Special . | . . . . . . . . . . . . . . . . . . . . Unused Backups 18 | . . . 2 . . . . 1 . . 1 6 . . . 2 2 . 4 Power 3 | . . . . . . . . . . . . 2 . . . 1 . . . Propulsion 4 | . . . 2 . . . . . . . . . . . . . 1 . 1 Utility 5 | . . . . . . . . . . . . 2 . . . 1 . . 2 Weapon 6 | . . . . . . . . 1 . . 1 2 . . . . 1 . 1 Tool/Special . | . . . . . . . . . . . . . . . . . . . . Average Slot Usage (%) 98 | . 97 100 99 99 100 99 97 92 87 87 89 96 98 99 99 99 100 99 99 Engine 6 | . 14 14 10 12 15 15 4 . 5 6 6 3 . . . . . . . Core 5 | . . . . . . . 9 12 6 6 6 9 15 14 14 13 4 4 4 Reactor 1 | . . . . . . . . . . . . . . . . . 8 9 9 Leg 3 | . 28 28 4 . . . . . . . . . . . . . . . . Hover 24 | . . . 28 36 32 29 28 25 24 25 22 23 25 25 28 27 27 27 27 Device 27 | . 14 14 18 12 17 23 27 32 25 25 30 37 35 34 32 33 35 35 35 Processor 6 | . . . 2 9 7 7 6 6 6 6 6 5 10 9 9 9 9 9 9 Protection 6 | . 12 14 10 9 7 6 5 3 6 6 6 3 3 4 3 4 4 4 3 Ballistic Gun 14 | . 27 26 21 16 15 14 13 12 11 12 12 10 10 9 8 8 9 6 9 Peak Build Rating 179 | 6 8 8 19 24 26 31 69 72 73 69 74 112 113 120 179 122 139 144 142 Average Rating 66 | 4 6 7 15 21 24 25 50 68 68 69 71 99 111 113 117 118 131 138 137 On Entrance 65 | . 6 7 7 19 24 25 28 67 72 69 69 70 112 113 118 118 121 136 138 Avg Prop Armor Cover (%) 7 | . . . . . . . . . . . . . . . . . . . 7 Naked Turns . | . . . . . . . . . . . . . . . . . . . . Heaviest Build 72 | 9 14 12 19 28 31 31 42 38 43 39 40 57 49 51 51 57 72 72 67 Greatest Support 81 | 20 20 20 32 32 32 32 49 49 49 49 49 61 61 72 72 72 77 77 81 Greatest Overweight (x) 8 | . . . 2 . . 1 1 . . . . 1 . . . . . . 8 Average Overweight (x) . | . . . . . . . . . . . . . . . . . . . . Largest Inventory Capacity 4 | 3 3 3 3 3 3 3 3 3 3 3 3 3 3 3 3 3 3 4 4 Average Capacity 3 | 3 3 3 3 3 3 3 3 3 3 3 3 3 3 3 3 3 3 3 4 Most Carried 4 | 3 2 3 3 3 3 3 3 3 3 2 3 3 3 3 3 3 3 4 4 Average Carried 2 | . . 1 2 2 2 2 2 2 1 2 2 1 2 2 2 1 2 3 3 Final Capacity 4 | 3 3 3 3 3 3 3 3 3 3 3 3 3 3 3 3 3 3 4 4 Final Carried 4 | . 1 2 1 3 3 3 2 2 2 2 3 2 2 3 2 1 3 4 4 Class Distribution -------------------- 48% | Scavenger-Mutant 37% | Mutant 11% | Scientist-Mutant Dominant Class ---------------- Mutant | -10/Materials Mutant | -10/Mines Mutant | -9/Materials Commander-Mutant | -9/Storage Mutant | -9/Recycling Mutant | -9/Scraptown Scavenger-Mutant | -6/Factory Scavenger-Mutant | -6/Lower Caves Scavenger-Mutant | -6/Lower Caves Scavenger-Mutant | -6/Data Miner Scavenger-Mutant | -5/Proximity Caves Scavenger-Mutant | -5/Factory Scavenger-Mutant | -5/Upper Caves Scavenger-Mutant | -5/Upper Caves Scavenger-Mutant | -5/Warlord Scavenger-Mutant | -4/Proximity Caves Scavenger-Mutant | -4/Factory Scientist-Mutant | -4/Waste Scientist-Mutant | -4/Factory Resources | -11 -10 -10 -9 -9 -9 -9 -6 -6 -6 -6 -5 -5 -5 -5 -5 -4 -4 -4 -4 ----------- Run | Yrd Mat Min Mat Sto Rec Scr Fac Low Low Dat Pro Fac Upp Upp War Pro Fac Was Fac Matter Collected 12942 | 372 190 268 1155 494 306 250 1652 432 254 . 324 1486 437 634 570 641 1442 345 1690 Remotely 2970 | . . . . . 23 250 1615 34 . . . . . . . . . . 1048 Salvage Created 15744 | 142 198 269 1401 305 1183 . 1227 657 244 . 690 2308 414 525 511 836 2341 672 1821 Parts 812 | 13 27 9 107 20 36 8 100 14 10 . 23 117 22 43 26 32 96 13 96 Haulers Intercepted 18 | . 2 . 5 2 . . . . . . . 3 . . . . 2 . 4 Recyclers Shooed 9 | 1 . . 1 . . . 2 . . . . . . . . . 4 . 1 Parts Field Recycled . | . . . . . . . . . . . . . . . . . . . . Retrieved Matter . | . . . . . . . . . . . . . . . . . . . . Parts Self-Destructed 143 | . . . . . . . . 5 16 . 29 . 22 41 . 30 . . . Prevented . | . . . . . . . . . . . . . . . . . . . . Parts Restored . | . . . . . . . . . . . . . . . . . . . . Kills | -11 -10 -10 -9 -9 -9 -9 -6 -6 -6 -6 -5 -5 -5 -5 -5 -4 -4 -4 -4 ------- Run | Yrd Mat Min Mat Sto Rec Scr Fac Low Low Dat Pro Fac Upp Upp War Pro Fac Was Fac Combat Hostiles Destroyed 266 | . 13 4 39 5 4 3 36 5 7 . 12 36 6 22 12 16 26 . 20 Guns 230 | . 1 4 36 5 4 3 28 5 5 . 12 32 6 20 9 14 26 . 20 Cannons 2 | . . . . . . . . . 2 . . . . . . . . . . AOE 34 | . 12 . 3 . . . 8 . . . . 4 . 2 3 2 . . . Classes Destroyed 23 | 1 4 1 1 . 1 2 5 2 . . 1 . 1 . 2 . 1 1 . Worker 10 | . . . 1 . . . 2 . . . . 2 . . . . . . 5 Builder 3 | . . . . . . . . . . . . . . . . . 2 . 1 Tunneler 8 | 6 . . . . . . . . . . . . . . . . 2 . . Hauler 18 | . 2 . 5 2 . . . . . . . 3 . . . . 2 . 4 Recycler 7 | . . . . . 1 . 2 . . . . . . . . . 3 . 1 Mechanic 1 | . . . . . . . 1 . . . . . . . . . . . . Operator 4 | . . . . . . . 1 . . . . 1 . . . . 2 . . Drone 4 | . . . . . . . . . . . 2 . . . . 2 . . . Watcher 22 | . 2 . 5 . . . 1 . . . . 5 . . . . 1 . 8 Swarmer 63 | . 8 . 16 . . . 11 . . . 2 12 . 7 3 2 1 . 1 Saboteur 2 | . . . . . . . . . . . . . . . 2 . . . . Grunt 99 | . 5 2 13 4 . . 13 5 6 . 4 6 2 13 4 7 11 . 4 Brawler 10 | . . . . . . . . 1 1 . 1 . 1 1 1 1 1 . 2 Duelist 5 | . . . . . . . 1 1 . . 2 . . . . . 1 . . Protector 1 | . . . . . . . . . . . . . . . 1 . . . . Sentry 38 | . . 2 10 2 4 . 5 . . . . 6 1 1 . 2 1 . 4 Hunter 15 | . . . . . . . 2 1 . . 1 3 2 . . . 4 . 2 Programmer 30 | . . . . . . . 4 . . . . 9 . . 1 2 7 . 7 Bolteater 1 | . . . . . . 1 . . . . . . . . . . . . . Scrapper 2 | . . . . . . 2 . . . . . . . . . . . . . Samaritan 1 | . . . . . . . . . . . . . 1 . . . . . . Surgeon 3 | . . . . . . . . . . . . . . . 1 . . . 2 Martyr 1 | . . . . . . . . . . . . . . . . . . 1 . Mutant 1 | . . . . . . . . 1 . . . . . . . . . . . Best Kill Streak 9 | 2 8 2 9 3 1 2 6 2 4 . 4 5 2 5 7 5 5 . 4 Combat Bots Only 9 | . 7 2 9 3 1 2 4 2 4 . 4 5 2 5 7 5 5 . 4 Max Kills in Single Turn 4 | 1 3 1 3 1 1 1 2 1 1 . 1 4 1 2 2 1 3 1 2 Gunslinging 1 | . . . 1 . . . . . . . . 1 . 1 . . . . . Exploded 4 | . 3 . 3 . . . 2 . . . . 4 . 2 2 1 . . . Melee . | . . . . . . . . . . . . . . . . . . . . Uniques/NPCs Destroyed . | . . . . . . . . . . . . . . . . . . . . Combat | -11 -10 -10 -9 -9 -9 -9 -6 -6 -6 -6 -5 -5 -5 -5 -5 -4 -4 -4 -4 -------- Run | Yrd Mat Min Mat Sto Rec Scr Fac Low Low Dat Pro Fac Upp Upp War Pro Fac Was Fac Hostile Shots Fired 1885 | . 29 39 224 43 20 48 397 38 57 . 38 187 39 73 59 68 162 . 364 Missed 794 | . 14 9 75 17 8 16 167 17 24 . 16 85 19 30 26 29 77 . 165 Hits 1091 | . 15 30 149 26 12 32 230 21 33 . 22 102 20 43 33 39 85 . 199 Melee 27 | . . . . . . 10 9 . . . . . . . . 2 1 . 5 Projectile 1064 | . 15 30 149 26 12 22 221 21 33 . 22 102 20 43 33 37 84 . 194 AOE 2 | . . . . . . . . . . . . . . . 2 . . . . Critical Strikes 54 | . . . 4 2 . 1 11 2 1 . 2 4 1 5 2 3 10 . 6 Actively Blocked 16 | . . . . . . . . . . . . . . . . . 10 . 6 Part Disruptions 2 | . . . . . . . . . . . . 1 . . 1 . . . . Damage Taken 15595 | . 175 411 1869 299 124 271 3471 333 511 . 466 1749 274 618 630 646 1176 . 2572 Core 11271 | . 131 324 1318 223 95 204 2495 250 372 . 344 1302 193 468 456 498 768 . 1830 Absorbed by Shields 2241 | . . . . 81 47 102 34 . . . . 590 101 229 225 235 440 . 157 Redirected to Core 9705 | . 88 233 1092 150 83 141 2119 220 317 . 310 1203 179 376 403 399 678 . 1714 Regen/Repaired (Parts) 235 | . . . 109 . . . 126 . . . . . . . . . . . . Core Remaining (%) 72 | 100 . 46 . . . 90 . . . . 32 . . . . 96 . . . Volleys Fired 1178 | 38 25 26 143 35 39 14 134 44 18 . 30 145 27 62 40 63 120 12 163 Largest 2 | 2 2 2 2 2 2 2 2 2 2 . 2 2 2 2 2 2 2 2 2 Hottest 70 | 40 40 40 46 53 46 46 58 60 70 . 60 63 63 63 63 68 70 65 65 Shots Fired 2282 | 76 39 49 279 63 78 24 257 85 37 . 60 287 53 122 74 119 236 19 325 Gun 2219 | 76 28 46 278 54 77 22 250 85 26 . 60 285 53 119 68 113 236 18 325 Cannon 11 | . . . . . . . . . 11 . . . . . . . . . . Launcher 52 | . 11 3 1 9 1 2 7 . . . . 2 . 3 6 6 . 1 . Special . | . . . . . . . . . . . . . . . . . . . . Kinetic 2230 | 76 28 46 278 54 77 22 250 85 37 . 60 285 53 119 68 113 236 18 325 Thermal . | . . . . . . . . . . . . . . . . . . . . Explosive 52 | . 11 3 1 9 1 2 7 . . . . 2 . 3 6 6 . 1 . Electromagnetic . | . . . . . . . . . . . . . . . . . . . . Robot Hit Streak 56 | 10 4 11 30 34 32 29 48 23 29 . 38 56 22 35 23 24 33 43 48 Robot Miss Streak 5 | 5 3 4 5 1 1 . 2 1 1 . 1 2 1 1 1 2 2 1 1 Penetration Max 2 | . . . . . . . 1 1 1 . 1 1 1 . 1 2 2 1 2 Secondary Targets 27 | . . . 6 1 . . 2 . . . 1 4 2 2 3 . 4 . 2 Max Gunslinging Chain 1 | . . . 1 1 . . 1 . . . 1 1 1 1 1 . 1 . 1 Shots Hit Robots 1526 | 44 15 29 197 44 63 20 207 61 31 . 46 195 44 84 57 75 161 14 139 Core Hits 721 | 10 23 10 70 17 24 8 96 25 12 . 25 85 18 47 46 38 89 9 69 Critical Kills 24 | 2 . . . . 1 . 2 . 1 . 1 2 1 1 . 2 5 . 6 Critical Parts Destroyed 39 | 1 . . . . 1 . 5 3 . . 1 10 1 . 6 2 2 . 7 Critical Strikes 63 | 3 . . . . 2 . 7 3 1 . 2 12 2 1 6 4 7 . 13 Destroy 63 | 3 . . . . 2 . 7 3 1 . 2 12 2 1 6 4 7 . 13 Melee Attacks . | . . . . . . . . . . . . . . . . . . . . Impact . | . . . . . . . . . . . . . . . . . . . . Slashing . | . . . . . . . . . . . . . . . . . . . . Piercing . | . . . . . . . . . . . . . . . . . . . . Sneak Attacks . | . . . . . . . . . . . . . . . . . . . . Combat Hostiles . | . . . . . . . . . . . . . . . . . . . . Follow-up Attacks . | . . . . . . . . . . . . . . . . . . . . Damage Inflicted 40364 | 467 862 310 3188 766 960 265 4414 1566 844 . 1054 5725 962 2451 2234 2657 5500 678 5461 Guns 36214 | 467 164 310 2906 698 960 265 3920 1566 574 . 1054 5301 962 2128 1710 1934 5180 654 5461 Cannons 270 | . . . . . . . . . 270 . . . . . . . . . . Explosions 3847 | . 698 . 249 68 . . 494 . . . . 424 . 323 524 723 320 24 . Melee . | . . . . . . . . . . . . . . . . . . . . Ramming 33 | . . . 33 . . . . . . . . . . . . . . . . Kinetic 36484 | 467 164 310 2906 698 960 265 3920 1566 844 . 1054 5301 962 2128 1710 1934 5180 654 5461 Thermal 320 | . . . . . . . . . . . . . . . . . 320 . . Explosive 3448 | . 698 . 170 68 . . 494 . . . . 424 . 323 524 723 . 24 . Electromagnetic 79 | . . . 79 . . . . . . . . . . . . . . . . Impact . | . . . . . . . . . . . . . . . . . . . . Slashing . | . . . . . . . . . . . . . . . . . . . . Piercing . | . . . . . . . . . . . . . . . . . . . . Highest Corruption 13 | . . . 1 2 4 . 11 13 13 13 13 4 4 4 4 4 5 5 9 Average Corruption 5 | . . . 1 1 3 . 4 12 13 13 13 3 4 4 2 3 1 5 7 Corruption Purged . | . . . . . . . . . . . . . . . . . . . . Corruption Blocked . | . . . . . . . . . . . . . . . . . . . . Effects 368 | . . . 12 6 13 . 69 30 25 1 43 19 14 23 8 18 13 8 66 Message Errors 84 | . . . 4 1 3 . 17 6 6 . 10 5 3 5 1 5 3 2 13 Matter Fused 89 | . . . 5 4 3 . 16 7 4 . 12 5 4 6 1 3 3 1 15 Heat Flow Errors 43 | . . . 1 . 2 . 8 2 3 . 8 . 1 3 2 4 . 1 8 Energy Discharges 44 | . . . . . 2 . 9 4 2 1 4 4 2 4 . 1 1 3 7 Parts Rejected 6 | . . . . . . . . 1 . . 1 . . 1 1 1 . . 1 Parts Fused 7 | . . . . . 2 . . . 1 . 2 1 . . . . . 1 . Data Loss (minor) 32 | . . . 2 . . . 7 2 3 . 4 2 2 1 3 1 2 . 3 Data Loss (major) 14 | . . . . . . . 2 2 . . . 1 1 2 . . . . 6 Misfires 18 | . . . . . 1 . 5 1 3 . 1 . . 1 . . . . 6 Alerts 8 | . . . . 1 . . 3 1 1 . . . . . . 2 . . . Weapon Failures 23 | . . . . . . . 2 4 2 . 1 1 1 . . 1 4 . 7 Overload Shots . | . . . . . . . . . . . . . . . . . . . . Overflow Damage 284 | . 69 . 40 . . . 53 . . . . 14 . . . 8 100 . . Projectiles . | . . . . . . . . . . . . . . . . . . . . Explosions 284 | . 69 . 40 . . . 53 . . . . 14 . . . 8 100 . . Melee . | . . . . . . . . . . . . . . . . . . . . Knockbacks 3 | . . . . . . . . . 3 . . . . . . . . . . Impact . | . . . . . . . . . . . . . . . . . . . . Kinetic 3 | . . . . . . . . . 3 . . . . . . . . . . Secondary . | . . . . . . . . . . . . . . . . . . . . Self-Inflicted Damage 275 | . 21 1 94 24 . 13 122 . . . . . . . . . . . . Shots 11 | . 1 1 2 2 . 1 4 . . . . . . . . . . . . Rammed 3 | . . . 3 . . . . . . . . . . . . . . . . Targets Rammed 3 | . . . 3 . . . . . . . . . . . . . . . . Kicked . | . . . . . . . . . . . . . . . . . . . . Crushed . | . . . . . . . . . . . . . . . . . . . . Highest Temperature 430 | . 12 37 430 37 175 14 379 162 257 . 213 32 206 153 272 338 22 211 274 Average Temperature 50 | . 4 11 76 10 38 4 82 18 86 . 59 7 54 35 36 62 6 76 45 Received Heat Transfer 3279 | . 30 171 717 139 24 118 865 126 231 . 108 157 24 214 84 98 101 . 72 Effects 22 | . . . 6 . . . 10 . 1 . . . 1 . 2 1 . . 1 Shutdowns 4 | . . . 2 . . . 2 . . . . . . . . . . . . Energy Bleed 4 | . . . . . . . . . 1 . . . 1 . . 1 . . 1 Interference 12 | . . . 2 . . . 8 . . . . . . . 2 . . . . Matter Decay 2 | . . . 2 . . . . . . . . . . . . . . . . Siege Activations . | . . . . . . . . . . . . . . . . . . . . Martial Activations . | . . . . . . . . . . . . . . . . . . . . Shielding Activations . | . . . . . . . . . . . . . . . . . . . . Robots Disrupted 1 | . . . 1 . . . . . . . . . . . . . . . . Combat Hostiles . | . . . . . . . . . . . . . . . . . . . . Robots Corrupted . | . . . . . . . . . . . . . . . . . . . . Combat Hostiles . | . . . . . . . . . . . . . . . . . . . . Parts Fried . | . . . . . . . . . . . . . . . . . . . . Impact Corruptions . | . . . . . . . . . . . . . . . . . . . . Robots Melted . | . . . . . . . . . . . . . . . . . . . . Combat Hostiles . | . . . . . . . . . . . . . . . . . . . . Parts Melted . | . . . . . . . . . . . . . . . . . . . . Heat Transferred 200 | . . . . . . . . . . . . . . . . . 200 . . Parts Sabotaged . | . . . . . . . . . . . . . . . . . . . . Parts Stolen 2 | . . . . . . 2 . . . . . . . . . . . . . Parts Stripped . | . . . . . . . . . . . . . . . . . . . . Power Chain Reactions . | . . . . . . . . . . . . . . . . . . . . Alert | -11 -10 -10 -9 -9 -9 -9 -6 -6 -6 -6 -5 -5 -5 -5 -5 -4 -4 -4 -4 ------- Run | Yrd Mat Min Mat Sto Rec Scr Fac Low Low Dat Pro Fac Upp Upp War Pro Fac Was Fac Maximum Alert Level 3 | . 1 . 2 2 1 . 3 . . . . 2 . . . . 2 1 3 Low Security (%) 54 | 100 98 100 71 1 36 . 66 . . . . 5 . . . . 9 89 56 Level 1 23 | . 1 . 27 30 64 . 5 . . . . 42 . . . . 76 10 4 Level 2 18 | . . . . 68 . . 21 . . . . 52 . . . . 14 . 25 Level 3 2 | . . . . . . . 6 . . . . . . . . . . . 13 Level 4 . | . . . . . . . . . . . . . . . . . . . . Level 5 . | . . . . . . . . . . . . . . . . . . . . High Security . | . . . . . . . . . . . . . . . . . . . . Max Security . | . . . . . . . . . . . . . . . . . . . . Peak Influence 855 | 5 209 45 470 582 260 . 855 . . . . 698 . . . . 620 215 846 Initial 513 | . . 36 . 197 201 . . . . . . 513 . . . . 217 215 56 Average 223 | . 59 8 131 437 210 . 192 . . . . 441 . . . . 309 154 312 Influence Increases 10830 | 30 412 124 1172 921 306 . 1300 100 175 . 381 1763 145 635 225 310 1241 46 1544 Destroy 0b10 Robot/C 5580 | . 260 80 780 380 80 . 720 80 140 . 300 720 120 440 220 280 520 . 460 Destroy 0b10 Robot/NC 480 | 30 20 . 55 25 65 . 35 . . . 10 55 5 5 5 10 60 . 100 Destroy Leader 1136 | . 48 10 210 148 . . 172 20 20 . 30 176 20 40 . 20 86 . 136 Allied During Kill 181 | . . . . 130 . . . . . . 11 . . . . . . . 40 Successful Hack 277 | . 11 . 21 32 19 . 52 . . . . 34 . . . . 38 . 70 Select Force Hacks 90 | . . . . . 90 . . . . . . . . . . . . . . Disable Machine 690 | . 15 . 30 75 45 . 120 . . . . 105 . . . . 75 . 225 Destroy Structure 1076 | . 58 19 16 71 7 . 81 . . . . 88 . . . . 222 46 468 Advance Influence 600 | . . . . . . . . . . . . 450 . . . . 150 . . Partial Spotted 135 | . . . 15 45 . . 15 . . . . 15 . . . . . . 45 Lose Combat Pursuer 585 | . . 15 45 15 . . 105 . 15 . 30 120 . 150 . . 90 . . Influence Decreases 9984 | 30 318 218 703 874 609 213 597 597 314 67 281 1165 539 463 588 316 732 581 779 Entered New Map 2636 | . . 58 . 272 315 213 . 261 40 67 . 37 259 59 476 113 40 401 25 Time Decay 5920 | 30 318 160 543 422 294 . 437 326 254 . 251 568 270 404 112 203 542 180 606 Search Patrol Dispatched 100 | . . . . . . . . . . . . 100 . . . . . . . Lost Part 80 | . . . 10 . . . 10 10 20 . 10 10 10 . . . . . . Lost Ally 348 | . . . . 180 . . . . . . 20 . . . . . . . 148 Purge Threat 900 | . . . 150 . . . 150 . . . . 450 . . . . 150 . . Squads Dispatched 71 | . 3 . 6 5 . . 20 . . . . 10 . . . . 12 . 15 Investigation 39 | . 3 . 5 2 . . 10 . . . . 3 . . . . 7 . 9 Extermination 16 | . . . . . . . 5 . . . . 4 . . . . 4 . 3 Reinforcement 13 | . . . 1 . . . 5 . . . . 3 . . . . 1 . 3 Assault . | . . . . . . . . . . . . . . . . . . . . Garrison 3 | . . . . 3 . . . . . . . . . . . . . . . Intercept . | . . . . . . . . . . . . . . . . . . . . Searches Triggered 1 | . . . . . . . . . . . . 1 . . . . . . . Unchained Authorized 1 | . . . . . . . . . . . . . . . . . . . 1 Data Miner Redirects 2 | . . . . . . . . . . . . 2 . . . . . . . Construction Impeded 2 | . . . . . . . 1 . . . . 1 . . . . . . . Haulers Reinforced 2 | . . . . . . . . . . . . . . . . . 1 . 1 Active Scanning Responses . | . . . . . . . . . . . . . . . . . . . . Cargo Convoy Interrupts . | . . . . . . . . . . . . . . . . . . . . Stealth | -11 -10 -10 -9 -9 -9 -9 -6 -6 -6 -6 -5 -5 -5 -5 -5 -4 -4 -4 -4 --------- Run | Yrd Mat Min Mat Sto Rec Scr Fac Low Low Dat Pro Fac Upp Upp War Pro Fac Was Fac Distress Signals 7 | . . . 1 2 . . 1 . . . . . . . 1 . . . 2 Communications Jammed 234 | . . . . . . . 69 . . . 1 2 . . 115 1 2 . 44 Distress Signals 232 | . . . . . . . 69 . . . . 2 . . 115 . 2 . 44 Times Spotted 416 | . 23 11 52 17 3 14 59 5 7 . 20 53 6 25 37 14 35 . 35 Peak Tracking Total 16 | . 4 16 9 4 1 5 6 2 4 . 7 5 3 4 10 5 4 . 4 Tactical Retreats 26 | . . 1 2 1 . . 4 . 1 . 1 7 . 5 . . 4 . . Traps | -11 -10 -10 -9 -9 -9 -9 -6 -6 -6 -6 -5 -5 -5 -5 -5 -4 -4 -4 -4 ------- Run | Yrd Mat Min Mat Sto Rec Scr Fac Low Low Dat Pro Fac Upp Upp War Pro Fac Was Fac Traps Triggered 27 | . 4 . 1 2 . . 5 . . . . 5 . . 1 . 2 . 7 Indirectly . | . . . . . . . . . . . . . . . . . . . . Trap Hack Attempts . | . . . . . . . . . . . . . . . . . . . . Triggered . | . . . . . . . . . . . . . . . . . . . . Disarmed . | . . . . . . . . . . . . . . . . . . . . Reprogrammed . | . . . . . . . . . . . . . . . . . . . . Reused . | . . . . . . . . . . . . . . . . . . . . Traps Extracted . | . . . . . . . . . . . . . . . . . . . . Installed . | . . . . . . . . . . . . . . . . . . . . Triggered . | . . . . . . . . . . . . . . . . . . . . Machines | -11 -10 -10 -9 -9 -9 -9 -6 -6 -6 -6 -5 -5 -5 -5 -5 -4 -4 -4 -4 ---------- Run | Yrd Mat Min Mat Sto Rec Scr Fac Low Low Dat Pro Fac Upp Upp War Pro Fac Was Fac Machines Disabled 55 | . 1 . 2 5 3 5 8 1 . . . 7 . . 2 1 5 . 15 Max in Single Turn 3 | . 1 . 2 1 3 3 2 1 . . . 1 . . 2 1 2 . 3 Garrison Access 4 | . . . . . . . 2 . . . . 1 . . . . 1 . . Machines Repaired . | . . . . . . . . . . . . . . . . . . . . Machines Dismantled . | . . . . . . . . . . . . . . . . . . . . Machines Sabotaged . | . . . . . . . . . . . . . . . . . . . . Overloaded Fab Kills . | . . . . . . . . . . . . . . . . . . . . Hacking | -11 -10 -10 -9 -9 -9 -9 -6 -6 -6 -6 -5 -5 -5 -5 -5 -4 -4 -4 -4 --------- Run | Yrd Mat Min Mat Sto Rec Scr Fac Low Low Dat Pro Fac Upp Upp War Pro Fac Was Fac Machines Accessed 127 | . 8 . 12 10 9 4 26 . 1 4 . 12 2 1 8 1 14 . 15 Terminals 60 | . 8 . 8 10 6 . 9 . . . . 7 . . . 1 6 . 5 Fabricators 8 | . . . . . . . 3 . . . . 2 . . . . . . 3 Repair Stations 6 | . . . 2 . . . 3 . . . . . . . . . 1 . . Recycling Units 20 | . . . . . 3 . 7 . . . . 1 . . . . 4 . 5 Scanalyzers 8 | . . . 2 . . . 2 . . . . 1 . . . . 1 . 2 Garrison Access 5 | . . . . . . . 2 . . . . 1 . . . . 2 . . Total Hacks 361 | . 20 . 41 28 24 26 60 . 1 28 . 31 6 1 18 6 37 . 34 Successful 223 | . 14 . 21 10 14 26 31 . 1 28 . 18 6 1 18 6 15 . 14 Failed 137 | . 6 . 20 18 10 . 29 . . . . 12 . . . . 22 . 20 Catastrophic 20 | . 1 . 1 . . . 4 . . . . 4 . . . . 6 . 4 Database Lockouts 1 | . . . . . . . . . . . . 1 . . . . . . . Manual 162 | . 19 . 26 25 24 . 20 . . . . 11 . . . . 20 . 17 Terminals 174 | . 20 . 28 28 20 . 22 . . . . 21 . . . 6 16 . 13 Fabricators 15 | . . . . . . . 3 . . . . 6 . . . . . . 6 Repair Stations 19 | . . . 6 . . . 11 . . . . . . . . . 2 . . Recycling Units 35 | . . . . . 4 . 12 . . . . 1 . . . . 8 . 10 Scanalyzers 26 | . . . 7 . . . 7 . . . . 2 . . . . 5 . 5 Garrison Access 12 | . . . . . . . 5 . . . . 1 . . . . 6 . . Terminal Hacks 138 | . 5 . 7 4 4 26 9 . 1 28 . 12 6 1 18 6 7 . 4 Record 64 | . . . . . . 26 . . . 11 . . 5 . 16 6 . . . Part Schematic 8 | . . . . . . . . . . 8 . . . . . . . . . Robot Schematic 6 | . . . . . . . . . . 6 . . . . . . . . . Robot Analysis 1 | . . . . . . . . . . . . . . . . . 1 . . Prototype ID Bank 5 | . . . 2 . . . . . . 3 . . . . . . . . . Open Door 7 | . . . . 1 . . 1 . 1 . . . 1 1 2 . . . . Branch Access Points 4 | . 1 . . . . . 1 . . . . 1 . . . . 1 . . Terminal Index 5 | . 1 . . 1 1 . . . . . . 1 . . . . . . 1 Fabricator Index 1 | . . . . . . . 1 . . . . . . . . . . . . Repair Station Index 1 | . . . . . . . . . . . . . . . . . 1 . . Recycling Unit Index 4 | . . . . . 2 . . . . . . . . . . . 1 . 1 Scanalyzer Index 1 | . . . . . . . 1 . . . . . . . . . . . . Alert Level 17 | . 1 . 2 1 . . 3 . . . . 6 . . . . 2 . 2 Unreport Threat 6 | . . . 1 . . . 1 . . . . 3 . . . . 1 . . Hauler Manifests 7 | . 1 . 2 1 1 . 1 . . . . 1 . . . . . . . Zone Layout 1 | . 1 . . . . . . . . . . . . . . . . . . Fabricator Hacks 9 | . . . . . . . 3 . . . . 3 . . . . . . 3 Network Status 7 | . . . . . . . 3 . . . . 1 . . . . . . 3 Load Schematic 1 | . . . . . . . . . . . . 1 . . . . . . . Build 1 | . . . . . . . . . . . . 1 . . . . . . . Repair Station Hacks 10 | . . . 4 . . . 6 . . . . . . . . . . . . Scan Component 6 | . . . 2 . . . 4 . . . . . . . . . . . . Repair 4 | . . . 2 . . . 2 . . . . . . . . . . . . Recycling Unit Hacks . | . . . . . . . . . . . . . . . . . . . . Scanalyzer 13 | . . . 2 . . . 5 . . . . 1 . . . . 4 . 1 Insert Component 1 | . . . . . . . . . . . . . . . . . . . 1 Retrieve Study 12 | . . . 2 . . . 5 . . . . 1 . . . . 4 . . Garrison Access Hacks 4 | . . . . . . . 2 . . . . 1 . . . . 1 . . Seal Access 4 | . . . . . . . 2 . . . . 1 . . . . 1 . . Unauthorized Hacks 49 | . 9 . 8 6 10 . 6 . . . . 1 . . . . 3 . 6 Terminals 30 | . 9 . 7 6 7 . . . . . . . . . . . . . 1 Botnet 8 | . 3 . 1 1 2 . . . . . . . . . . . . . 1 Skim 22 | . 6 . 6 5 5 . . . . . . . . . . . . . . Fabricators . | . . . . . . . . . . . . . . . . . . . . Repair Stations 1 | . . . 1 . . . . . . . . . . . . . . . . Patch 1 | . . . 1 . . . . . . . . . . . . . . . . Recycling Units 18 | . . . . . 3 . 6 . . . . 1 . . . . 3 . 5 Tunnel 3 | . . . . . 3 . . . . . . . . . . . . . . Fedlink 15 | . . . . . . . 6 . . . . 1 . . . . 3 . 5 Scanalyzers . | . . . . . . . . . . . . . . . . . . . . Garrison Access . | . . . . . . . . . . . . . . . . . . . . Data Cores Recovered 3 | . . . . . . . . . . . . 1 . . . . 2 . . Used 2 | . . . . . . . . . . . . 1 . . . . 1 . . Hacking Detections 79 | . 7 . 11 9 4 . 14 . . . . 10 . . . 1 12 . 11 Full Trace Events 19 | . . . 3 2 . . 4 . . . . 2 . . . . 4 . 4 Feedback Events 3 | . . . . 1 . . . . . . . . . . . . 1 . 1 Corruption 3 | . . . . 1 . . . . . . . . . . . . 1 . 1 Feedback Blocked . | . . . . . . . . . . . . . . . . . . . . Robot Schematics Acquired 6 | . . . . . . . . . . 6 . . . . . . . . . Robots Built . | . . . . . . . . . . . . . . . . . . . . Authchips . | . . . . . . . . . . . . . . . . . . . . Time . | . . . . . . . . . . . . . . . . . . . . Total Robot Build Rating . | . . . . . . . . . . . . . . . . . . . . Part Schematics Acquired 8 | . . . . . . . . . . 8 . . . . . . . . . Parts Built 1 | . . . . . . . . . . . . 1 . . . . . . . Authchips . | . . . . . . . . . . . . . . . . . . . . Time 84 | . . . . . . . . . . . . 84 . . . . . . . Total Part Build Rating 6 | . . . . . . . . . . . . 6 . . . . . . . Part Studies Acquired 12 | . . . 2 . . . 5 . . . . 1 . . . . 4 . . Parts Repaired 4 | . . . 2 . . . 2 . . . . . . . . . . . . Time 158 | . . . 58 . . . 100 . . . . . . . . . . . . Parts Recycled . | . . . . . . . . . . . . . . . . . . . . Recycled Matter . | . . . . . . . . . . . . . . . . . . . . Retrieved Matter . | . . . . . . . . . . . . . . . . . . . . Retrieved Components . | . . . . . . . . . . . . . . . . . . . . Parts Scanalyzed 1 | . . . . . . . . . . . . . . . . . . . 1 Part Schematics Acquired . | . . . . . . . . . . . . . . . . . . . . Parts Damaged . | . . . . . . . . . . . . . . . . . . . . Bothacking | -11 -10 -10 -9 -9 -9 -9 -6 -6 -6 -6 -5 -5 -5 -5 -5 -4 -4 -4 -4 ------------ Run | Yrd Mat Min Mat Sto Rec Scr Fac Low Low Dat Pro Fac Upp Upp War Pro Fac Was Fac Used RIF Installer . | . . . . . . . . . . . . . . . . . . . . Robots Hacked . | . . . . . . . . . . . . . . . . . . . . Non-combat . | . . . . . . . . . . . . . . . . . . . . Combat . | . . . . . . . . . . . . . . . . . . . . Robot Hacks Applied . | . . . . . . . . . . . . . . . . . . . . Relay Couplers Released . | . . . . . . . . . . . . . . . . . . . . Fabnet Peak Effective % . | . . . . . . . . . . . . . . . . . . . . Robots Rewired . | . . . . . . . . . . . . . . . . . . . . Allies Hacked . | . . . . . . . . . . . . . . . . . . . . Hacks Repelled . | . . . . . . . . . . . . . . . . . . . . Allies | -11 -10 -10 -9 -9 -9 -9 -6 -6 -6 -6 -5 -5 -5 -5 -5 -4 -4 -4 -4 -------- Run | Yrd Mat Min Mat Sto Rec Scr Fac Low Low Dat Pro Fac Upp Upp War Pro Fac Was Fac Total Allies 31 | . . . . 10 . . . . . . 1 . . . . . . 20 . Largest Group 20 | . . . . 10 . . . . . . 1 . . . . . . 20 19 Highest-Rated Group 752 | . . . . 88 . . . . . . 96 . . . . . . 752 702 Highest-Rated Ally 96 | . . . . 16 . . . . . . 96 . . . . . . 50 46 Total Orders . | . . . . . . . . . . . . . . . . . . . . Ally Attacks 146 | . . . . 78 . . . . . . 12 . . . . . . . 56 Total Damage 2284 | . . . . 719 . . . . . . 402 . . . . . . . 1163 Kills 28 | . . . . 16 . . . . . . 5 . . . . . . . 7 Allies Corrupted . | . . . . . . . . . . . . . . . . . . . . Allies Melted 2 | . . . . . . 2 . . . . . . . . . . . . . Intel | -11 -10 -10 -9 -9 -9 -9 -6 -6 -6 -6 -5 -5 -5 -5 -5 -4 -4 -4 -4 ------- Run | Yrd Mat Min Mat Sto Rec Scr Fac Low Low Dat Pro Fac Upp Upp War Pro Fac Was Fac Active Infowar (turns) 22017 | 17 1261 1083 2903 1027 650 1270 3047 723 558 37 888 1706 594 970 705 617 1543 367 2051 Sensors 17339 | . . . 654 1027 650 1270 2993 723 558 37 888 1706 594 970 693 617 1543 367 2049 Terrain 2 | . . . . . . . . . . . . . . . . . . . 2 Seismic 4610 | 17 1261 1083 2249 . . . . . . . . . . . . . . . . Jamming 13842 | . . . . . . 74 3047 723 558 37 888 1705 594 970 674 617 1540 367 2048 Robot Analysis Total 1 | . . . . . . . . . . . . . . . . . 1 . . Derelict Logs Recovered 10 | . . . . . . . . 1 3 . 1 . 1 2 . 2 . . . Drone Launches . | . . . . . . . . . . . . . . . . . . . . Drone Recoveries . | . . . . . . . . . . . . . . . . . . . . Exploration | -11 -10 -10 -9 -9 -9 -9 -6 -6 -6 -6 -5 -5 -5 -5 -5 -4 -4 -4 -4 ------------- Run | Yrd Mat Min Mat Sto Rec Scr Fac Low Low Dat Pro Fac Upp Upp War Pro Fac Was Fac Turns Passed 22338 | 286 1261 1083 2946 1027 650 1270 3047 723 558 37 888 1711 594 970 709 617 1543 367 2051 Spaces Moved 25113 | 156 716 761 1783 966 1046 2465 2800 1173 887 77 971 2167 1041 1305 1213 961 1706 383 2536 Core 38 | 29 . . . . . . . . . . . . . . . . . . 9 Treads . | . . . . . . . . . . . . . . . . . . . . Legs 1838 | 127 716 761 234 . . . . . . . . . . . . . . . . Wheels . | . . . . . . . . . . . . . . . . . . . . Hover 23237 | . . . 1549 966 1046 2465 2800 1173 887 77 971 2167 1041 1305 1213 961 1706 383 2527 Flight . | . . . . . . . . . . . . . . . . . . . . Fastest Speed 38 | 50 120 120 48 48 48 48 44 48 48 48 48 40 48 43 43 43 38 41 41 Average Speed 53 | 106 120 120 59 48 48 48 62 48 48 48 49 44 48 47 43 43 41 41 45 Slowest Speed 450 | 120 120 120 180 48 48 112 112 48 52 48 52 105 48 48 43 50 45 44 450 Overloaded Moves . | . . . . . . . . . . . . . . . . . . . . Propulsion Burnouts . | . . . . . . . . . . . . . . . . . . . . Robots Hopped . | . . . . . . . . . . . . . . . . . . . . Potential Cave-ins 26 | . . 7 . . . . . . . . . . . . 1 . 4 . 14 Cave-ins Triggered . | . . . . . . . . . . . . . . . . . . . . Exploration Rate (%) 77 | 5 90 98 99 80 95 95 58 97 94 68 92 53 83 94 85 88 39 91 55 Regions Visited 19 Branch Regions 12 Pre-discovered Areas 16 | . 1 1 2 2 5 . 1 . 1 1 . . . 1 1 . . . . Known Exits Taken 16 | . 1 1 1 1 1 1 1 1 1 1 1 1 1 1 1 1 . . . Unknown Exits Taken 1 | 1 . . . . . . . . . . . . . . . . . . . Scrap Searched 25 | . . 1 . . . 5 . 4 4 . 2 . 3 2 . 4 . . . Spaces Dug 292 | . 11 13 . 9 . . 26 4 . . . 25 . . . . 45 . 159 Terrain Destroyed 1113 | . 75 34 11 87 7 12 95 8 4 . 2 64 7 88 9 61 148 47 354 Melee . | . . . . . . . . . . . . . . . . . . . . Projectile 597 | . . . . . . . 4 8 4 . 2 56 7 41 3 25 130 19 298 AOE 514 | . 75 34 11 87 7 12 91 . . . . 7 . 47 5 36 18 28 56 Terrain Rammed . | . . . . . . . . . . . . . . . . . . . . Walls Destroyed . | . . . . . . . . . . . . . . . . . . . . Machines Disabled . | . . . . . . . . . . . . . . . . . . . . Actions | -11 -10 -10 -9 -9 -9 -9 -6 -6 -6 -6 -5 -5 -5 -5 -5 -4 -4 -4 -4 --------- Run | Yrd Mat Min Mat Sto Rec Scr Fac Low Low Dat Pro Fac Upp Upp War Pro Fac Was Fac Total 32150 | 206 1079 885 3406 1466 1116 2525 3833 1264 993 76 1327 2707 1097 1575 1349 1081 2369 579 3217 Wait 4472 | 1 308 92 1341 374 4 4 674 24 45 . 318 217 . 108 31 15 428 128 360 Move 25094 | 155 715 760 1782 965 1045 2464 2799 1172 886 76 970 2165 1040 1304 1212 960 1706 382 2536 Hop . | . . . . . . . . . . . . . . . . . . . . Pick Up 197 | 6 5 2 19 12 3 5 27 7 9 . 4 36 2 11 2 6 14 4 23 Fast Attach 105 | . . . 7 . 6 11 13 . 1 . . 5 . 4 13 . 12 16 17 Attach 61 | 6 1 . 7 4 . . 11 3 2 . 2 11 1 3 1 2 2 . 5 Detach 1 | . . . . . . . . . . . . . . . 1 . . . . Swap 153 | . 8 4 14 13 2 2 31 3 3 . . 31 . 3 2 5 23 2 7 Drop 270 | . 3 1 26 10 8 13 33 4 9 . 1 40 1 12 15 6 31 19 38 Fire 1178 | 38 25 26 143 35 39 14 134 44 18 . 30 145 27 62 40 63 120 12 163 Melee . | . . . . . . . . . . . . . . . . . . . . Ram 3 | . . . 3 . . . . . . . . . . . . . . . . Kick . | . . . . . . . . . . . . . . . . . . . . Crush . | . . . . . . . . . . . . . . . . . . . . Escape Stasis 23 | . . . . 13 . . . . . . . 1 . . . . . . 9 Rewire 5 | . . . . . . 4 . . . . . . . . 1 . . . . Trap . | . . . . . . . . . . . . . . . . . . . . Miscellaneous 588 | . 14 . 64 40 9 8 111 7 20 . 2 56 26 68 31 24 33 16 59 Route ------- -11/Scrapyard -10/Materials (discovered 6 exits: *Mat x3 / *Min x2 / Sub) -10/Mines (discovered 3 exits: *Mat x2 / [*Exi]) -9/Materials (discovered 6 exits: *Mat x3 / *Min / *Sto x2) -9/Storage (discovered 2 exits: *Mat / *Rec) -9/Recycling (discovered 2 exits: [*Fac] / *Scr) -9/Scraptown (discovered 2 exits: *Fac x2) -6/Factory (discovered 7 exits: *Fac x3 / *Low x2 / *Ext x2) -6/Lower Caves -6/Lower Caves (discovered 2 exits: *Fac / *Dat) -6/Data Miner -5/Proximity Caves -5/Factory (discovered 4 exits: *Fac x2 / *Upp x2) -5/Upper Caves -5/Upper Caves (discovered 2 exits: *Fac / *War) -5/Warlord -4/Proximity Caves -4/Factory (discovered 4 exits: *Res / Upp x2 / Arm) -4/Waste -4/Factory (discovered 1 exit: *Res) History --------- Turn | Location | Event 1 | -11/Scrapyard | Upgraded with Propulsion slot (x1) 1 | -11/Scrapyard | Upgraded with Utility slot (x1) 1 | -11/Scrapyard | Upgraded with Weapon slot (x1) 4 | -11/Scrapyard | Discovered new exit (range 15) 287 | -11/Scrapyard | Entered Materials 310 | -10/Materials | Build established: Mutant 435 | -10/Materials | Destroyed 7 combat bots 612 | -10/Materials | Discovered new exit (range 16) 847 | -10/Materials | Discovered new exit (range 12) 908 | -10/Materials | Learned location of Storage (-9) 957 | -10/Materials | Learned Storage trap positions 997 | -10/Materials | Learned Storage emergency access door positions 1025 | -10/Materials | Identified exit to Materials 1045 | -10/Materials | Identified exit to Mines 1077 | -10/Materials | Learned 4 Subcaves zone layouts 1117 | -10/Materials | Identified exit to Subcaves 1503 | -10/Materials | Reached level 2 1548 | -10/Materials | Entered Mines 1549 | -10/Mines | Assembled infested the area 2436 | -10/Mines | Core integrity fell below 50% 2505 | -10/Mines | Discovered exit to Materials (range 5) 2550 | -10/Mines | Discovered exit to Materials (range 9) 2599 | -10/Mines | Discovered new exit (range 5) 2631 | -10/Mines | Entered Materials 2632 | -9/Materials | Core integrity fell below 50% 2633 | -9/Materials | Reached level 3 2673 | -9/Materials | Discovered new exit (range 14) 2715 | -9/Materials | Reached level 4 2745 | -9/Materials | Upgraded with Utility slot (x1) 3141 | -9/Materials | Upgraded with Propulsion slot (x1) 3169 | -9/Materials | Build established: Scavenger-Mutant 4193 | -9/Materials | Repaired Lgt. Armor Plating 4333 | -9/Materials | Reached level 5 4377 | -9/Materials | Core integrity fell below 20% 4426 | -9/Materials | Destroyed 9 combat bots 4484 | -9/Materials | Discovered new exit (range 16) 4625 | -9/Materials | Build established: Mutant 4626 | -9/Materials | Learned Storage trap positions 4653 | -9/Materials | Discovered new exit (range 12) 4656 | -9/Materials | Identified exit to Materials 4675 | -9/Materials | Learned location of 1 exit from Storage 4684 | -9/Materials | Learned location of Zion (-7) 4707 | -9/Materials | Identified exit to Storage 4707 | -9/Materials | Learned location of 1 exit from Materials 4752 | -9/Materials | Reached level 6 4760 | -9/Materials | Upgraded with Propulsion slot (x1) 4956 | -9/Materials | Repaired Imp. Hover Unit+ 5432 | -9/Materials | Identified exit to Mines 5563 | -9/Materials | Reached level 7 5577 | -9/Materials | Entered Storage 5578 | -9/Storage | Identified exit to Recycling 5579 | -9/Storage | Loaded intel: 21 trap records 5595 | -9/Storage | Assisted by bots powering up and referring to "LRC-V3" 5621 | -9/Storage | Reached level 8 5736 | -9/Storage | Used back door to open Recycling access 5873 | -9/Storage | Build established: Commander-Mutant 6033 | -9/Storage | Lost 3 allies 6124 | -9/Storage | Reached level 9 6131 | -9/Storage | Upgraded with Power slot (x1) 6131 | -9/Storage | Upgraded with Utility slot (x1) 6385 | -9/Storage | Garrison activated, responded to threat 6414 | -9/Storage | Learned location of Recycling (-9) 6462 | -9/Storage | Learned 8 Materials zone layouts 6472 | -9/Storage | Build established: Mutant 6500 | -9/Storage | Learned Materials emergency access door positions 6528 | -9/Storage | Learned Storage emergency access door positions 6546 | -9/Storage | Learned 4 Recycling zone layouts 6572 | -9/Storage | Learned Materials security intel 6604 | -9/Storage | Entered Recycling 6801 | -9/Recycling | Discovered new exit (range 11) 6904 | -9/Recycling | Learned 4 Recycling zone layouts 6957 | -9/Recycling | Learned Storage security intel 7002 | -9/Recycling | Learned Storage emergency access door positions 7015 | -9/Recycling | Reached level 10 7035 | -9/Recycling | Learned Materials stockpile data 7074 | -9/Recycling | Learned location of Mines (-9) 7099 | -9/Recycling | Identified exit to Scraptown 7136 | -9/Recycling | Learned Materials security intel 7158 | -9/Recycling | Upgraded with Utility slot (x1) 7181 | -9/Recycling | Learned Materials recycling unit intel 7241 | -9/Recycling | Scanned before Scraplab entrance 7248 | -9/Recycling | Entered Scraplab 7254 | -9/Recycling | Entered Scraptown 7254 | -9/Scraptown | System corruption cleaned by C-Scrubber 7534 | -9/Scraptown | Discovered new exit (range 5) 7615 | -9/Scraptown | Visited Cyclists 7631 | -9/Scraptown | Heard Great Nut preacher, LISTEN AND RECITE! 7632 | -9/Scraptown | Visited Assassins FH 7667 | -9/Scraptown | Visited Symbiants 7697 | -9/Scraptown | Visited Comm Corps 7840 | -9/Scraptown | Visited SPCMW 7860 | -9/Scraptown | Visited IN-MT5's Study 7870 | -9/Scraptown | Visited The Evicted 7919 | -9/Scraptown | Visited UFD Registry 7919 | -9/Scraptown | Registered with UFD as "Matrixrider" 7930 | -9/Scraptown | Visited Curators Association 7970 | -9/Scraptown | Visited Junk Cannon Lab 7976 | -9/Scraptown | Found Prototype Special Weapon 7976 | -9/Scraptown | Identified Junk Cannon 8080 | -9/Scraptown | Visited Science Testing Area 8097 | -9/Scraptown | Visited Scrapoid Pod Storage 8107 | -9/Scraptown | Visited Derelict Rescue Squad 8117 | -9/Scraptown | Visited Research Penetration Think Tank 8137 | -9/Scraptown | Discovered new exit (range 3) 8176 | -9/Scraptown | Visited Chapter 10 8204 | -9/Scraptown | Visited Botcube Research 8210 | -9/Scraptown | Found Botcube 8342 | -9/Scraptown | Met Optimus 8342 | -9/Scraptown | Accepted into 0bPrime 8382 | -9/Scraptown | Civil war broke out across Scraptown 8468 | -9/Scraptown | Found Siege Articulator 8523 | -9/Scraptown | Identified exit to Factory 8524 | -9/Scraptown | Entered Factory 8526 | -6/Factory | Reached level 11 8540 | -6/Factory | Lost 3 allies 8541 | -6/Factory | Upgraded with Utility slot (x1) 8803 | -6/Factory | Loaded intel: 8 recycling unit locations 8830 | -6/Factory | Discovered new exit (range 6) 8832 | -6/Factory | Identified exit to Extension 9278 | -6/Factory | Core integrity fell below 50% 9473 | -6/Factory | Build established: Scavenger-Mutant 9641 | -6/Factory | Discovered new exit (range 5) 9646 | -6/Factory | Identified exit to Factory 9767 | -6/Factory | Reached level 12 10099 | -6/Factory | Repaired Lyr. Medium Armor Plating 10151 | -6/Factory | Repaired Imp. Reaction Control System 10408 | -6/Factory | Upgraded with Propulsion slot (x1) 10607 | -6/Factory | Discovered exit to Factory (range 14) 10655 | -6/Factory | Learned location of Protoforge (-2) 10664 | -6/Factory | Reached level 13 11130 | -6/Factory | Spotted B-75 Beast 11259 | -6/Factory | Reached level 14 11307 | -6/Factory | System corruption reached 10% 11316 | -6/Factory | Identified exit to Lower Caves 11419 | -6/Factory | Upgraded with Utility slot (x1) 11453 | -6/Factory | Discovered exit to Factory (range 4) 11571 | -6/Factory | Entered Lower Caves 11572 | -6/Lower Caves | Encountered a Warlord checkpoint 11573 | -6/Lower Caves | Reached level 15 11810 | -6/Lower Caves | Attacked by a delusional Derelict stockpiling Unaware 12127 | -6/Lower Caves | Learned location of 1 exit from Factory 12150 | -6/Lower Caves | Discovered new exit (range 15) 12198 | -6/Lower Caves | Identified exit to Lower Caves 12294 | -6/Lower Caves | Entered another Lower Caves area 12316 | -6/Lower Caves | Reached level 16 12335 | -6/Lower Caves | Spotted B-75 Beast 12374 | -6/Lower Caves | Found DCF Scrap (11 items) 12416 | -6/Lower Caves | Discovered exit to Factory (range 10) 12430 | -6/Lower Caves | Learned location of 1 exit from Factory 12441 | -6/Lower Caves | Encountered a Warlord checkpoint 12446 | -6/Lower Caves | Learned 4 Factory zone layouts 12703 | -6/Lower Caves | Discovered new exit (range 12) 12753 | -6/Lower Caves | Identified exit to Data Miner 12852 | -6/Lower Caves | Entered Data Miner 12852 | -6/Data Miner | Discovered new exit (range 6) 12862 | -6/Data Miner | Met Data Miner 12871 | -6/Data Miner | Learned location of Section 7 (-2) 12871 | -6/Data Miner | Acquired the access code to Warlord's prototype stash 12877 | -6/Data Miner | Received God Mode back door access code from Data Miner 12889 | -6/Data Miner | Identified exit to Proximity Caves 12889 | -6/Data Miner | Entered Proximity Caves 12891 | -5/Proximity Caves | Reached level 17 13105 | -5/Proximity Caves | Spotter reported a threat 13120 | -5/Proximity Caves | Spotter reported a threat 13229 | -5/Proximity Caves | Received a Behemoth hack from an annoying Tinkerer 13311 | -5/Proximity Caves | Learned Factory stockpile data 13418 | -5/Proximity Caves | Attracted the attention of an 0b10 outpost 13450 | -5/Proximity Caves | Reached level 18 13468 | -5/Proximity Caves | Escorted by Enhanced Grunt 13521 | -5/Proximity Caves | Spotter reported a threat 13708 | -5/Proximity Caves | Discovered exit to Factory (range 11) 13777 | -5/Proximity Caves | Entered Factory 13778 | -5/Factory | Identified exit to Factory 13778 | -5/Factory | Identified exit to Upper Caves 13778 | -5/Factory | Core integrity fell below 50% 13779 | -5/Factory | Reached level 19 13804 | -5/Factory | Upgraded with Utility slot (x1) 13972 | -5/Factory | Spotted B-75 Beast 14069 | -5/Factory | Reached level 20 14077 | -5/Factory | Search patrols dispatched 14127 | -5/Factory | Incoming investigation squad redirected 14193 | -5/Factory | Fabricated Cld. Gravmag System? 14244 | -5/Factory | Build established: Mutant 14266 | -5/Factory | Upgraded with Utility slot (x1) 14592 | -5/Factory | Upgraded with Power slot (x1) 14633 | -5/Factory | Central database locked down 14643 | -5/Factory | Reached level 21 14865 | -5/Factory | Build established: Scavenger-Mutant 15146 | -5/Factory | Core integrity fell below 20% 15231 | -5/Factory | Loaded intel: 8 recycling unit locations 15256 | -5/Factory | Incoming investigation squad redirected 15308 | -5/Factory | Upgraded with Utility slot (x1) 15448 | -5/Factory | Discovered exit to Factory (range 14) 15488 | -5/Factory | Entered Upper Caves 15583 | -5/Upper Caves | Attracted the attention of an 0b10 checkpoint 15654 | -5/Upper Caves | Reached level 22 15841 | -5/Upper Caves | Learned Factory emergency access door positions 15878 | -5/Upper Caves | Entered an active Warlord outpost 15887 | -5/Upper Caves | Learned location of 1 exit from Research 15887 | -5/Upper Caves | Learned Extension security intel 15887 | -5/Upper Caves | Learned Research terminal intel 15887 | -5/Upper Caves | Learned Armory terminal intel 15904 | -5/Upper Caves | Discovered new exit (range 8) 15907 | -5/Upper Caves | Identified exit to Upper Caves 16082 | -5/Upper Caves | Entered another Upper Caves area 16126 | -5/Upper Caves | Discovered exit to Factory (range 14) 16778 | -5/Upper Caves | Attracted the attention of an 0b10 checkpoint 16938 | -5/Upper Caves | Entered a destroyed Warlord outpost 16938 | -5/Upper Caves | Learned Factory terminal intel 16946 | -5/Upper Caves | Upgraded with Propulsion slot (x1) 16990 | -5/Upper Caves | Discovered new exit (range 14) 17011 | -5/Upper Caves | Identified exit to Warlord 17052 | -5/Upper Caves | Entered Warlord 17080 | -5/Warlord | Discovered new exit (range 14) 17092 | -5/Warlord | Identified exit to Proximity Caves 17120 | -5/Warlord | System corruption cleaned by Quarantine Array 17276 | -5/Warlord | Learned Armory terminal intel 17277 | -5/Warlord | Learned 4 Armory zone layouts 17277 | -5/Warlord | Learned 4 Testing zone layouts 17277 | -5/Warlord | Learned 4 Command zone layouts 17277 | -5/Warlord | Learned location of Armory (-4) 17277 | -5/Warlord | Learned Testing trap positions 17281 | -5/Warlord | Rebuked by Warlord 17297 | -5/Warlord | Warlord's base attacked by MAIN.C 17371 | -5/Warlord | Found Prototype Launcher 17371 | -5/Warlord | Identified Vortex Catalyst Activator 17373 | -5/Warlord | Found Prototype Energy Cannon 17373 | -5/Warlord | Identified Vortex Cannon 17474 | -5/Warlord | Reached level 23 17554 | -5/Warlord | Warlord forces counterattacked 17565 | -5/Warlord | Destroyed 7 combat bots 17630 | -5/Warlord | Spotted Executioner 17688 | -5/Warlord | Found Prototype Device 17688 | -5/Warlord | Identified Wardrone Bay 17690 | -5/Warlord | Lost 17 allies 17720 | -5/Warlord | Opened side exit 17759 | -5/Warlord | Lost 3 allies 17761 | -5/Warlord | Entered Proximity Caves 17916 | -4/Proximity Caves | Attracted the attention of an 0b10 checkpoint 17931 | -4/Proximity Caves | Learned Research security intel 18044 | -4/Proximity Caves | Learned 8 Research zone layouts 18061 | -4/Proximity Caves | Spotter reported a threat 18078 | -4/Proximity Caves | Reached level 24 18157 | -4/Proximity Caves | Attracted the attention of an 0b10 base 18249 | -4/Proximity Caves | Learned Research security intel 18249 | -4/Proximity Caves | Learned Armory emergency access door positions 18249 | -4/Proximity Caves | Learned Research emergency access door positions 18249 | -4/Proximity Caves | Learned location of 1 exit from Factory 18314 | -4/Proximity Caves | Discovered exit to Factory (range 8) 18378 | -4/Proximity Caves | Entered Factory 18379 | -4/Factory | Identified exit to Research 18381 | -4/Factory | Loaded intel: 26 terminal locations 18516 | -4/Factory | Upgraded with Utility slot (x1) 18610 | -4/Factory | Reached level 25 18804 | -4/Factory | Loaded intel: 8 recycling unit locations 18984 | -4/Factory | Found Prototype Device 18984 | -4/Factory | Identified Adv. EM Shield 19007 | -4/Factory | Identified exit to Upper Caves 19007 | -4/Factory | Identified exit to Armory 19383 | -4/Factory | Found Prototype Launcher 19397 | -4/Factory | Identified Tesla Bomb Launcher 19531 | -4/Factory | Found Powered Armor 19680 | -4/Factory | Build established: Mutant 19921 | -4/Factory | Sucked down chute 19921 | -4/Factory | Entered Waste 19922 | -4/Waste | Joined by Warlord forces that had cleared the area 19926 | -4/Waste | Found Prototype Launcher 19926 | -4/Waste | Identified Point Singularity Launcher 20024 | -4/Waste | Build established: Scientist-Mutant 20037 | -4/Waste | Found Prototype Launcher 20037 | -4/Waste | Identified Gui. Micro-nuke Launcher 20240 | -4/Waste | Discovered new exit (range 14) 20249 | -4/Waste | Identified exit to Factory 20288 | -4/Waste | Entered Factory 20288 | -4/Factory | Accompanied by 19 allies 20453 | -4/Factory | Lost 16 allies 20845 | -4/Factory | Loaded intel: 8 recycling unit locations 21070 | -4/Factory | Reached level 26 21324 | -4/Factory | Discovered exit to Research (range 15) 21394 | -4/Factory | Spotted B-86 Titan 21667 | -4/Factory | Found Prototype Processor 21668 | -4/Factory | Identified Exp. Terrain Scan Processor 22050 | -4/Factory | Unchained authorized (DW-4LL) 22162 | -4/Factory | Spotted B-86 Titan 22305 | -4/Factory | DW-4LL burst out of a wall 22322 | -4/Factory | Core integrity fell below 50% 22334 | -4/Factory | Core integrity fell below 20% 22339 | -4/Factory | Destroyed by DW-4LL with DW-4LL's Megashotty Last Messages --------------- 22297_ Stasis field depleted. 22302_ U-05 Engineer lays Concrete. 22304_ U-05 Engineer builds a Wall. DW-4LL bursts from the wall. DW-4LL: "PEEKABLAST!" 22307_ Slug penetrates DW-4LL. 22309_ U-05 Engineer lays Concrete. 22310_ System corrupted: Railgun+ jammed. 22310_ Slug penetrates DW-4LL. 22311_ U-05 Engineer lays Concrete. 22312_ Slug penetrates DW-4LL. 22312_ Slug penetrates Wall. 22315_ Slug penetrates DW-4LL. 22324_ Slug penetrates U-05 Engineer. 22324_ Destroyed Welding Torch. 22324_ Destroyed Unknown Wheel. 22325_ U-05 Engineer call for reinforcements jammed. 22327_ Slug penetrates DW-4LL. 22334_ Slug penetrates Wall. 22334_ Slug penetrates DW-4LL. Map ----- +----------------------------------------------------+ | # ???????# #???# """ """???# "#??# | | ?????????#+#???# """???????# "#??## | | ??????????????## """ """???# "#???? | | ??????????????# ??# ##???? | | ??????????????# """ ??####+###+##????? | | ??????????????# """ ? ???????????# #?????? | | ??????????????# ### """??????????????# #?????? | | ??????????????# #?? ??????????### ###???? | | ??????????????# #??? ????????# ##### | | ??????????????# #???########?????????# ! ! # | | ????????????### ###??????????#???????# +!" " | | #########+### #???????????????#" " #!" " | | #???????????????## # #!" " | | ! #??????????????????### ###!" " | | H +????????????????????# #?# " " | | #????????????????????# #?#!" " | | #???????????????????? #?#!" " | | ?#######"#### #????????????????????# #?#!" " | | ######" #??#########??????????##?????;u?# #?#*" " | | ["###???????????????######;####;;;### ### | | """ ##?????????????????# """ ![ # #"##+ | | """ #??????????????????# "T" [ # | | """ #####??????????????# " " "" + | | " #??????????????#[^ """" # | | !"####????????????###!=8 """"" # | | ###+##" #??????????????#u@[* ; | | ####??????????????################# | | #??????????????????????# ##???# g | | #??????????????????????##?????# """ | | ##?????????????????????????????# "Y" | | #?????????????????????#????????# " " | | #??????????????????????????????# | | #??????????????????????????????# | | ##########?????????????? | | # #?????????????? | | # "" #?????????????? | | " "" #??????????????? | | # [ """ #??????????????? | | "= """ #???????????????? | | ### " """ #???????????????? ## T## | | ??# # #???????????????? ?###?## | | ??# # #????????????????? ???????# | | ??# # #???????????????????????????# | | ###+#"########???????????????????????????# | | # #??????????????????????????????????# | | #"??????????????????????????????????? | | # ???????????????????????????????????######### | | #"???????????????????????????????????????????? | | ##???????????????????????????????????????????? | | #????????????????????????????????????????????? | +----------------------------------------------------+ Best States ------------- Heat Dissipation 80 Energy Generation 63 Energy Capacity 445 Matter Stores 300 Matter Capacity 300 Sight Range 16 Robot Scan Range 18 Terrain Scan Density 10 Jamming Range 16 Armor Coverage 400 Point Defense Rating 160 Weapon Cycling 20 Evasion (%) 67 Core Analysis 6 Particle Charging 20 Kinecelleration 40 Offensive Hacking 10 Defensive Hacking 5 Item Schematics ----------------- Combat Drone Bay | -6/Data Miner | Free Lgt. Regenerative Plating | -6/Data Miner | Free Cld. Gravmag System | -6/Data Miner | Free Imp. Thermal Defense Suite | -6/Data Miner | Free Cld. Plasma Rifle | -6/Data Miner | Free Imp. Gyrokinetic Inverter | -6/Data Miner | Free Imp. Point Defense System | -6/Data Miner | Free Adv. Datajack | -6/Data Miner | Free Robot Schematics ------------------ S-27 Virus | -6/Data Miner | Free L-41 Fighter | -6/Data Miner | Free Y-64 Sentinel | -6/Data Miner | Free E-15 Imp | -6/Data Miner | Free A-15 Conveyor | -6/Data Miner | Free A-27 Freighter | -6/Data Miner | Free Fabricated ------------ Cld. Gravmag System | x1 | -5/Factory Repaired ---------- Lgt. Armor Plating | 16% | -9/Materials Imp. Hover Unit | 25% | -9/Materials Lyr. Medium Armor Plating | 65% | -6/Factory Imp. Reaction Control System | 67% | -6/Factory Studied --------- Imp. Hover Unit | -9/Materials | Hacked Hvy. Assault Rifle | -9/Materials | Hacked Mni. Grenade Launcher | -6/Factory | Hacked Imp. Ion Engine | -6/Factory | Hacked Coil Gun | -6/Factory | Hacked Mic. Nuclear Core | -6/Factory | Hacked Imp. Gravmag System | -6/Factory | Hacked Mic. Fission Core | -5/Factory | Hacked Cmb. Airjet | -4/Factory | Hacked Imp. Antigrav System | -4/Factory | Hacked Railgun | -4/Factory | Hacked Imp. Linear Gravjet | -4/Factory | Hacked Alien Tech Used ----------------- None Achievements -------------- A Problem For Future Me Hulk Smash Link The Feds Look Less Dangerous Next Time Uncivil War Challenges ------------ None RPGLIKE | -11 -10 -10 -9 -9 -9 -9 -6 -6 -6 -6 -5 -5 -5 -5 -5 -4 -4 -4 -4 --------- Run | Yrd Mat Min Mat Sto Rec Scr Fac Low Low Dat Pro Fac Upp Upp War Pro Fac Was Fac Levels Raised 25 | . 1 . 5 2 1 . 4 1 1 . 2 3 1 . 1 1 1 . 1 XP Earned 41224 | 3000 1575 950 6553 3507 998 304 6871 1000 1300 650 2670 4753 519 960 717 1575 2044 67 1211 XP Spent 37930 | 3000 . . 7080 3820 1400 . 6100 . . . . 10350 . 1700 . 280 3200 1000 . Upgrades 51 | 6 . . 17 6 1 . 8 . . . . 8 . 1 . 2 1 1 . Power Slot 2 | . . . . 1 . . . . . . . 1 . . . . . . . Propulsion Slot 5 | 1 . . 2 . . . 1 . . . . . . 1 . . . . . Utility Slot 10 | 1 . . 1 1 1 . 2 . . . . 3 . . . . 1 . . Weapon Slot 1 | 1 . . . . . . . . . . . . . . . . . . . Core Integrity 8 | . . . 8 . . . . . . . . . . . . . . . . Heat Dissipation 6 | . . . . 2 . . 2 . . . . . . . . 2 . . . Energy Generation 3 | . . . . . . . . . . . . 3 . . . . . . . Mass Support 1 | . . . . . . . . . . . . 1 . . . . . . . Inventory Capacity 4 | 3 . . . . . . . . . . . . . . . . . 1 . Ranged Accuracy 8 | . . . 6 2 . . . . . . . . . . . . . . . Hack Attack % 2 | . . . . . . . 2 . . . . . . . . . . . . Hack Defense % 1 | . . . . . . . 1 . . . . . . . . . . . . Protomatter Created 4630 | . 99 . 484 149 51 174 779 56 152 . 59 395 197 623 78 120 530 66 618 Integrity Restored 12274 | . 199 . 1338 746 144 154 2389 168 456 . 33 1275 591 1397 617 499 751 353 1164 Core 10270 | . 131 . 1338 527 95 107 2221 168 456 . 33 1275 591 777 456 466 598 202 829 Parts 2004 | . 68 . . 219 49 47 168 . . . . . . 620 161 33 153 151 335 Protomatter Decayed 3193 | . 3 73 . 118 6 1955 116 . . . . . . 14 337 11 132 251 177 Game ------ Seed MeleeGatlingGun Manual? 0 Play Time 03:54:19 Cumulative 151.6 hours Start 2025.12.29 @ 01:37:08 End 2025.12.30 @ 19:01:41 Sessions 15 Manual Loads 0 Difficulty Rogue Special Mode Winter2019/RPGLIKE Game No. 53 Rogue 51 Adventurer 2 Explorer 0 Win Type - Total 13 Types 2/1/2/1/1/1/1/1/2/1 Lore% 57 Gallery% 76 Achievement% 45 Wizard Run 0 Options --------- Layout 0 ASCII 0 Keyboard 0 Movement Arrows Keybinds 1 Fullscreen 2 Font 24/Smallcaps Map View 76x50 Zoom Use 0% Tactical HUD 1 Map Filters NONE Filters NONE Steam 1 RUN: cc5047b1-57b4-40f4-ad0a-bae75c8e6e55